bitfinex/quotes_ETHUSD_20250925
["timestamp","ask_amount","ask_price","bid_price","bid_amount"]
[1758781365743,1e-08,4022.9,4022.8,10.90868493]
[1758781365946,1e-08,4022.9,4022.8,12.98068493]
[1758781367650,1e-08,4022.9,4022.8,8.54668493]
[1758781367881,1e-08,4022.9,4022.8,12.98068493]
[1758781368345,1e-08,4022.9,4022.8,6.47468493]
[1758781368578,1e-08,4022.9,4022.8,12.97968493]
[1758781370551,1e-08,4022.9,4022.8,8.99083076]
[1758781370754,0.22960001,4022.9,4022.8,2.48583076]
[1758781370993,0.67920001,4022.9,4022.8,2.48583076]
[1758781371276,0.67920001,4022.9,4022.8,8.99083076]
[1758781374459,0.67920001,4022.9,4022.1,0.124]
[1758781374666,0.67920001,4022.9,4022.2,6.12]
[1758781374874,0.6792,4022.8,4022.2,6.12]
[1758781375097,0.6792,4022.7,4022.2,6.12]
[1758781375300,1e-08,4022.9,4022.3,2.48609608]
[1758781375482,0.6792,4022.6,4022.2,6.12]
[1758781375793,0.6792,4022.5,4022.0,2.48626711]
[1758781375996,0.6792,4022.4,4022.3,2.072]
[1758781376205,0.6792,4022.4,4022.3,6.504]
[1758781377405,0.6792,4022.4,4021.9,0.002]
[1758781377700,0.6792,4022.4,4022.0,6.504]
[1758781377908,0.6792,4022.3,4022.1,4.432]
[1758781378112,0.6792,4022.2,4022.1,4.432]
[1758781379015,0.6792,4022.2,4021.9,0.002]
[1758781379181,0.4496,4022.1,4022.0,4.432]
[1758781379381,0.6792,4022.1,4022.0,4.432]
[1758781379579,3.16547144,4022.1,4022.0,4.432]
[1758781380006,3.16547144,4022.1,4021.9,0.002]
[1758781380007,2.48632521,4022.0,4021.9,0.002]
[1758781380214,2.48632521,4022.0,4021.9,4.434]
[1758781380508,3.16552521,4022.0,4021.9,4.434]
[1758781381028,3.71541842,4022.0,4021.9,0.002]
[1758781381180,3.16552521,4022.0,4021.9,0.002]
[1758781381381,0.6792,4022.0,4021.9,2.541]
[1758781383184,0.6792,4022.0,4021.9,0.002]
[1758781383386,6.95752521,4022.0,4021.9,0.002]
[1758781385444,7.34745839,4022.0,4021.9,0.002]
[1758781386921,7.34745839,4022.0,4021.4,1e-08]
[1758781386922,2.48663434,4021.5,4021.4,1e-08]
[1758781387221,36.82166465,4021.5,4021.4,1e-08]
[1758781387428,37.49946465,4021.5,4021.4,1e-08]
[1758781387718,6.55443338,4021.5,4021.4,1e-08]
[1758781388901,10.98543338,4021.5,4021.4,1e-08]
[1758781389417,42.32046369,4021.5,4021.4,1e-08]
[1758781390602,41.93046465,4021.5,4021.4,1e-08]
[1758781391189,10.59543434,4021.5,4021.4,1e-08]
[1758781392689,0.4674,4022.4,4021.4,1e-08]
[1758781392915,0.2486,4022.3,4021.4,1e-08]
[1758781393111,2.73475132,4022.3,4021.4,1e-08]
[1758781393341,2.48613881,4022.4,4021.4,1e-08]
[1758781393550,2.48608354,4022.4,4021.6,2.48656925]
[1758781394112,1e-08,4022.9,4021.7,9.48910694]
[1758781394333,2.48596896,4022.6,4021.9,2.48633851]
[1758781394544,2.48586488,4022.8,4022.0,2.48630728]
[1758781394759,1e-08,4022.9,4022.1,0.0536]
[1758781394959,0.38983606,4022.7,4022.1,2.53981118]
[1758781395330,0.38983606,4022.7,4022.2,0.445]
[1758781395530,0.38983606,4022.7,4022.4,2.48606552]
[1758781395741,0.38983606,4022.7,4022.3,2.98472567]
[1758781395946,0.38983606,4022.7,4022.4,4.875]
[1758781396314,0.38983606,4022.7,4022.4,0.445]
[1758781396515,2.48600064,4022.6,4022.2,6.503]
[1758781396724,0.63843606,4022.7,4022.1,6.503]
[1758781396929,0.38983606,4022.7,4022.1,6.5566]
[1758781397214,0.38983606,4022.7,4022.5,2.48601456]
[1758781397419,0.38983606,4022.7,4022.5,2.48600325]
[1758781397642,0.38983606,4022.7,4022.6,0.445]
[1758781398230,0.38983606,4022.7,4022.2,0.4986]
[1758781398432,0.2486,4022.6,4022.0,2.072]
[1758781398742,0.2486,4022.6,4022.1,4.43]
[1758781398933,0.38983606,4022.7,4022.1,4.43]
[1758781399253,0.38983606,4022.7,4022.2,2.48617442]
[1758781399449,0.38983606,4022.7,4022.3,0.02486139]
[1758781399767,1e-08,4022.9,4022.7,2.48584753]
[1758781399935,1e-08,4022.9,4022.7,6.91484753]
[1758781400264,1e-08,4022.9,4022.8,2.48583076]
[1758781400562,1e-08,4022.9,4022.8,2.98443076]
[1758781400765,1e-08,4022.9,4022.7,4.429]
[1758781401666,0.2486,4022.8,4022.1,0.02]
[1758781401959,2.48595472,4022.6,4022.2,4.429]
[1758781402162,0.716,4022.8,4022.2,4.429]
[1758781402567,2.48593338,4022.7,4022.2,4.429]
[1758781402926,1e-08,4022.9,4021.5,0.445]
[1758781403131,2.48607808,4022.4,4021.7,2.48650116]
[1758781403333,0.38982429,4022.6,4021.6,3.705]
[1758781403540,0.38982429,4022.6,4021.7,0.4986]
[1758781404063,0.38982429,4022.6,4022.2,2.48618305]
[1758781404236,0.38982429,4022.6,4022.3,4.428]
[1758781404432,0.716,4022.5,4021.8,2.48640472]
[1758781404638,0.2486,4022.5,4022.0,4.428]
[1758781404833,0.6773851,4022.6,4022.0,6.91432084]
[1758781405363,3.16335549,4022.6,4022.0,4.428]
[1758781405571,0.6773851,4022.6,4022.0,4.428]
[1758781405731,2.48607682,4022.5,4022.0,4.428]
[1758781406164,0.38982429,4022.6,4022.0,4.428]
[1758781406341,2.87580756,4022.6,4022.0,4.428]
[1758781406865,2.48606471,4022.5,4022.0,4.427]
[1758781407184,2.73461615,4022.5,4022.0,4.427]
[1758781407564,0.716,4022.4,4021.4,1e-08]
[1758781407766,0.792,4022.3,4021.4,1e-08]
[1758781408185,3.0,4022.2,4021.4,1e-08]
[1758781408371,2.4863669,4022.0,4021.4,1e-08]
[1758781408703,0.63849381,4022.1,4021.4,1e-08]
[1758781408862,2.48653112,4021.7,4021.4,1e-08]
[1758781409191,2.48663174,4021.6,4021.4,1e-08]
[1758781409367,0.716,4021.6,4021.4,1e-08]
[1758781409567,2.73523434,4021.5,4021.4,1e-08]
[1758781409767,3.20263434,4021.5,4021.4,1e-08]
[1758781411267,6.20263434,4021.5,4021.4,1e-08]
[1758781412592,6.99463434,4021.5,4021.4,1e-08]
[1758781414913,7.38463652,4021.5,4021.4,1e-08]
[1758781415108,6.91723652,4021.5,4021.4,1e-08]
[1758781415283,7.38463652,4021.5,4021.4,1e-08]
[1758781418880,3.39000218,4021.5,4021.4,1e-08]
[1758781419125,5.87663652,4021.5,4021.4,1e-08]
[1758781419276,3.39000218,4021.5,4021.4,1e-08]
[1758781419613,3.39000218,4021.5,4021.4,0.49860001]
[1758781419614,0.39000218,4021.5,4021.4,0.49860001]
[1758781419809,4.425,4022.1,4021.4,0.49860001]
[1758781420112,6.91132443,4022.1,4021.4,0.49860001]
[1758781420282,6.91132443,4022.1,4021.4,2.98529618]
[1758781420283,3.0,4022.0,4021.4,2.98529618]
[1758781420609,4.425,4022.1,4021.5,2.48662961]
[1758781420818,0.001,4022.6,4021.5,0.30352296]
[1758781421114,0.001,4022.6,4021.6,2.5689]
[1758781421412,0.001,4022.6,4021.7,4.116]
[1758781421580,0.001,4022.6,4021.8,0.02486448]
[1758781421905,0.001,4022.6,4022.1,2.48621158]
[1758781422106,0.001,4022.6,4021.9,2.48635008]
[1758781422307,0.001,4022.6,4022.2,2.48618475]
[1758781422702,0.001,4022.6,4022.3,0.4959]
[1758781423236,0.001,4022.6,4022.4,0.4423]
[1758781424601,0.001,4022.6,4022.0,2.4863175]
[1758781424827,0.001,4022.6,4022.0,2.9286175]
[1758781425028,0.001,4022.6,4022.0,0.4423]
[1758781425210,0.001,4022.6,4022.1,2.48625599]
[1758781425736,0.001,4022.6,4022.3,2.48612169]
[1758781426050,0.001,4022.6,4022.5,2.48601615]
[1758781426195,0.001,4022.6,4022.4,0.4423]
[1758781426537,0.001,4022.6,4022.2,4.423]
[1758781426737,0.001,4022.6,4022.5,2.48601615]
[1758781427161,0.001,4022.6,4022.5,2.98191615]
[1758781428455,0.001,4022.6,4022.5,3.5312076]
[1758781429838,0.001,4022.6,4022.5,7.9532076]
[1758781430041,0.001,4022.6,4022.5,4.421]
[1758781430218,0.001,4022.6,4022.5,6.90701615]
[1758781430934,0.001,4022.6,4022.5,4.421]
[1758781431141,0.001,4022.6,4022.5,6.90701615]
[1758781432651,0.001,4022.6,4022.5,7.40291615]
[1758781432877,0.001,4022.6,4022.5,7.65265536]
[1758781433176,0.001,4022.6,4022.5,6.90701615]
[1758781433851,0.001,4022.6,4022.5,6.90601615]
[1758781435089,0.001,4023.1,4023.0,2.48570718]
[1758781435254,0.001,4023.1,4023.0,6.93056425]
[1758781435456,0.001,4023.1,4023.0,7.40160718]
[1758781435656,0.001,4023.1,4023.0,8.69034653]
[1758781436360,0.001,4023.1,4023.0,11.69034653]
[1758781436561,0.001,4023.1,4023.0,11.81434653]
[1758781437446,1e-08,4023.5,4023.4,2.48546005]
[1758781437691,1e-08,4023.5,4023.4,9.00031465]
[1758781437885,1e-08,4023.5,4023.4,10.74394574]
[1758781438118,1e-08,4023.5,4023.4,13.74394574]
[1758781438258,1e-08,4023.5,4023.4,14.53594574]
[1758781438778,1e-08,4023.5,4023.4,12.46394574]
[1758781438972,1e-08,4023.5,4023.4,14.53594574]
[1758781443478,0.001,4024.1,4023.4,14.53594574]
[1758781443479,0.001,4024.1,4024.0,2.48508946]
[1758781443650,0.001,4024.1,4024.0,10.27259841]
[1758781443850,0.001,4024.1,4024.0,10.75889841]
[1758781444382,0.001,4024.1,4024.0,11.57089841]
[1758781444755,0.001,4024.1,4024.0,11.55089841]
[1758781445957,0.02,4024.9,4024.0,11.55089841]
[1758781446163,0.02,4024.9,4024.8,2.4845955]
[1758781446378,0.02,4024.9,4024.8,6.92344145]
[1758781446586,0.02,4024.9,4024.8,6.8985955]
[1758781447160,0.02,4025.9,4024.8,6.8985955]
[1758781447161,0.02,4025.9,4025.8,2.48397833]
[1758781447359,0.02,4025.9,4025.8,9.21737616]
[1758781448287,0.02,4025.9,4025.8,9.77407616]
[1758781448485,0.02,4025.9,4025.8,2.85637616]
[1758781448653,0.02,4025.9,4025.8,3.28907616]
[1758781448980,0.02,4025.9,4025.8,9.34037616]
[1758781449425,0.02,4025.9,4025.8,0.37239783]
[1758781449624,0.02,4025.9,4025.8,8.96697833]
[1758781449791,0.02,4025.9,4025.8,9.39967833]
[1758781450117,0.02,4025.9,4025.8,9.52367833]
[1758781450318,0.02,4025.9,4025.8,9.09097833]
[1758781451909,0.015,4025.9,4025.8,9.09097833]
[1758781452107,1e-08,4025.9,4025.8,13.24848546]
[1758781452313,1e-08,4025.9,4025.8,14.50418546]
[1758781452514,1e-08,4025.9,4025.8,14.55778546]
[1758781453038,0.02,4026.9,4026.8,2.48336147]
[1758781453039,1e-08,4026.9,4026.8,2.48336147]
[1758781453188,1e-08,4026.9,4026.8,12.78119508]
[1758781453387,1e-08,4026.9,4026.8,14.4068253]
[1758781453891,1e-08,4026.9,4026.8,14.8705253]
[1758781454342,1e-08,4026.9,4026.8,14.9241253]
[1758781457032,1e-08,4026.9,4026.8,7.9258253]
[1758781457217,1e-08,4026.9,4026.8,14.4048253]
[1758781457595,1e-08,4026.9,4026.8,14.9221253]
[1758781458028,1e-08,4026.9,4026.8,14.4038253]
[1758781458224,1e-08,4026.9,4026.8,12.3338253]
[1758781458430,1e-08,4026.9,4026.8,14.4038253]
[1758781459102,1e-08,4026.9,4026.8,14.8675253]
[1758781459709,1e-08,4026.9,4026.8,7.9258253]
[1758781460011,1e-08,4026.9,4026.8,14.4028253]
[1758781460733,1e-08,4026.9,4026.8,14.9201253]
[1758781463048,0.02,4028.9,4028.8,2.48212867]
[1758781463232,0.2514,4028.9,4028.8,8.95712867]
[1758781463543,0.7232,4028.9,4028.8,2.48212867]
[1758781463922,0.7232,4028.9,4028.5,2.60630274]
[1758781464127,0.7232,4028.9,4028.1,0.124]
[1758781464128,0.7032,4028.8,4028.1,0.124]
[1758781464301,0.7032,4028.8,4028.5,2.48229988]
[1758781464502,0.7032,4028.7,4028.6,2.483]
[1758781464700,0.7032,4028.7,4028.6,4.404]
[1758781464899,0.7032,4028.7,4028.6,6.88625189]
[1758781465140,0.7032,4028.7,4028.6,4.404]
[1758781465634,0.7032,4028.7,4028.4,2.069]
[1758781465635,0.7032,4028.7,4028.4,2.48236289]
[1758781465835,0.7032,4028.6,4028.5,6.88530674]
[1758781466060,0.7032,4028.6,4028.5,4.403]
[1758781466204,0.7032,4028.6,4028.5,6.88531351]
[1758781467306,0.7032,4028.6,4028.5,4.403]
[1758781467506,0.7032,4028.6,4027.9,2.48263408]
[1758781467702,0.7032,4028.5,4028.0,4.403]
[1758781467939,0.7032,4028.4,4028.0,4.403]
[1758781468157,0.7032,4028.3,4028.0,4.403]
[1758781468466,0.7032,4028.2,4028.1,4.402]
[1758781468769,0.7032,4028.2,4028.0,4.402]
[1758781468966,0.7032,4028.1,4028.0,4.402]
[1758781469332,0.7032,4028.1,4026.8,0.002]
[1758781469542,2.48293667,4027.5,4026.8,0.002]
[1758781469743,2.4829945,4027.4,4026.9,1.318]
[1758781469947,0.7032,4027.3,4026.9,1.318]
[1758781470174,2.48306971,4027.3,4026.9,1.318]
[1758781470365,3.18632644,4027.2,4026.8,0.002]
[1758781470676,0.7032,4027.2,4026.9,3.39]
[1758781470969,0.7032,4027.1,4026.9,3.39]
[1758781471151,0.7032,4027.0,4026.9,3.39]
[1758781471357,0.7032,4027.0,4026.8,0.002]
[1758781471358,2.4832998,4026.9,4026.8,0.002]
[1758781471904,7.10330252,4026.9,4026.8,0.002]
[1758781472170,13.57330252,4026.9,4026.8,0.002]
[1758781473188,3.27560818,4026.4,4026.3,1e-08]
[1758781473364,9.99390763,4026.4,4026.3,1e-08]
[1758781473574,10.69710763,4026.4,4026.3,1e-08]
[1758781474787,3.27573155,4026.2,4026.1,1e-08]
[1758781474957,6.27573155,4026.2,4026.1,1e-08]
[1758781475287,6.97893155,4026.2,4026.1,1e-08]
[1758781475502,7.28052531,4026.2,4026.1,1e-08]
[1758781475652,13.75152531,4026.2,4026.1,1e-08]
[1758781477704,13.75152531,4026.2,4024.2,2.07]
[1758781477705,3.27585494,4026.0,4025.9,0.00120001]
[1758781477857,37.51800913,4026.0,4025.9,0.00120001]
[1758781478056,0.47969945,4026.0,4025.9,0.00120001]
[1758781478287,2.95547389,4026.3,4025.9,0.00120001]
[1758781478488,0.2314,4026.0,4025.9,0.00120001]
[1758781478860,2.71525494,4026.0,4025.9,0.00120001]
[1758781479096,0.2314,4026.0,4025.9,0.00120001]
[1758781479293,3.18705494,4026.0,4025.9,0.00120001]
[1758781479901,11.38005494,4026.0,4025.9,0.00120001]
[1758781480195,10.58805494,4026.0,4025.9,0.00120001]
[1758781480368,3.2314,4026.0,4025.9,0.00120001]
[1758781480574,5.71525494,4026.0,4025.9,0.00120001]
[1758781480907,3.2314,4026.0,4025.9,0.00120001]
[1758781481086,3.0,4026.0,4025.9,0.00120001]
[1758781481261,0.2495,4026.4,4025.9,0.00120001]
[1758781481609,3.2495,4026.4,4025.9,0.00120001]
[1758781481810,2.48385494,4026.0,4025.9,0.00120001]
[1758781481975,33.72600913,4026.0,4025.9,0.00120001]
[1758781482303,0.2495,4026.0,4025.9,0.00120001]
[1758781482610,5.483742,4026.2,4025.9,0.00120001]
[1758781482912,0.4552,4026.5,4025.9,0.00120001]
[1758781482913,2.4835465,4026.5,4025.9,0.00120001]
[1758781483227,33.72600913,4026.0,4025.9,0.00120001]
[1758781483426,41.12600913,4026.0,4025.9,0.00120001]
[1758781483641,42.62270913,4026.0,4025.9,0.00120001]
[1758781484823,43.01228984,4026.0,4025.9,0.00120001]
[1758781485391,45.63728984,4026.0,4025.9,0.00120001]
[1758781486027,41.23728984,4026.0,4025.9,0.00120001]
[1758781486185,47.70628984,4026.0,4025.9,0.00120001]
[1758781486387,41.23728984,4026.0,4025.9,0.00120001]
[1758781486615,42.21928984,4026.0,4025.9,0.00120001]
[1758781487503,45.63628984,4026.0,4025.9,0.00120001]
[1758781489415,45.63628984,4026.0,4025.4,0.002]
[1758781489416,8.90116345,4025.5,4025.4,0.002]
[1758781489623,5.1093486,4025.2,4025.1,0.02]
[1758781489835,14.5783486,4025.2,4025.1,0.018]
[1758781490125,14.5783486,4025.2,4025.0,0.002]
[1758781490126,8.90141032,4025.1,4025.0,0.002]
[1758781490418,6.27641032,4025.1,4025.0,0.002]
[1758781490619,6.98111032,4025.1,4025.0,0.002]
[1758781493193,3.27696595,4024.2,4024.1,0.02]
[1758781493398,7.398,4024.2,4024.1,0.02]
[1758781493636,9.88296595,4024.2,4024.1,0.02]
[1758781494731,10.27267053,4024.2,4024.1,0.02]
[1758781496408,10.52217053,4024.2,4024.1,0.02]
[1758781497027,10.27267053,4024.2,4024.1,0.02]
[1758781497826,11.31417053,4024.2,4024.1,0.02]
[1758781497995,11.76937053,4024.2,4024.1,0.02]
[1758781498213,11.76937053,4024.2,4023.4,0.002]
[1758781498214,2.48539828,4023.5,4023.4,0.002]
[1758781498415,41.91655247,4023.5,4023.4,0.002]
[1758781498751,42.62125247,4023.5,4023.4,0.002]
[1758781498944,43.01103815,4023.5,4023.4,0.002]
[1758781500425,38.61403815,4023.5,4023.4,0.002]
[1758781500618,44.69225247,4023.5,4023.4,0.002]
[1758781500953,38.22425247,4023.5,4023.4,0.002]
[1758781501148,44.69225247,4023.5,4023.4,0.002]
[1758781502814,38.22425247,4023.5,4023.4,0.002]
[1758781503018,43.98755247,4023.5,4023.4,0.002]
[1758781503255,37.51955247,4023.5,4023.4,0.002]
[1758781503468,31.24215419,4024.6,4023.4,0.5043]
[1758781503469,2.071,4024.3,4023.4,0.5043]
[1758781503624,0.38977098,4023.5,4023.4,0.5043]
[1758781503825,4.397,4023.6,4023.4,0.5043]
[1758781504045,4.397,4023.6,4023.4,0.002]
[1758781504260,0.38973367,4023.5,4023.4,2.48746005]
[1758781504757,0.38973367,4023.5,4023.4,2.98976005]
[1758781504919,0.38973367,4023.5,4023.4,3.54177846]
[1758781505353,0.38973367,4023.5,4023.4,0.4487]
[1758781505754,0.38973367,4023.5,4023.4,0.5043]
[1758781506361,0.38973367,4023.5,4023.4,0.002]
[1758781506523,2.87513195,4023.5,4023.4,0.002]
[1758781506727,3.55863195,4023.5,4023.4,0.002]
[1758781507028,7.35063195,4023.5,4023.4,0.002]
[1758781508456,6.66713195,4023.5,4023.4,0.002]
[1758781508857,5.87513195,4023.5,4023.4,0.002]
[1758781509160,10.27013195,4023.5,4023.4,0.002]
[1758781509562,11.74563195,4023.5,4023.4,0.002]
[1758781509781,11.06213195,4023.5,4023.4,0.002]
[1758781509931,5.87513195,4023.5,4023.4,0.002]
[1758781510225,2.48513222,4024.0,4023.4,0.002]
[1758781510226,2.72241293,4024.8,4023.4,2.48744852]
[1758781510430,2.48497097,4024.2,4023.5,0.4467]
[1758781510625,6.467,4024.7,4023.5,0.4467]
[1758781510626,3.0,4024.0,4023.5,0.4467]
[1758781510854,7.395,4024.0,4023.4,0.002]
[1758781511250,2.48539828,4023.5,4023.4,0.002]
[1758781511427,6.88039828,4023.5,4023.4,0.002]
[1758781511763,9.88039828,4023.5,4023.4,0.002]
[1758781511949,13.97499828,4023.5,4023.4,0.002]
[1758781512939,13.97399828,4023.5,4023.4,0.002]
[1758781513139,13.52299828,4023.5,4023.4,0.002]
[1758781513344,16.04599828,4023.5,4023.4,0.002]
[1758781513541,5.90270718,4023.0,4022.9,1e-08]
[1758781513762,44.53886137,4023.0,4022.9,1e-08]
[1758781513968,45.21646137,4023.0,4022.9,1e-08]
[1758781514545,45.60632725,4023.0,4022.9,1e-08]
[1758781515268,42.98132725,4023.0,4022.9,1e-08]
[1758781515474,45.60632725,4023.0,4022.9,1e-08]
[1758781515781,5.90295435,4022.6,4022.5,0.002]
[1758781515944,15.36895435,4022.6,4022.5,0.002]
[1758781516144,16.04655435,4022.6,4022.5,0.002]
[1758781516657,53.5345005,4022.6,4022.5,0.002]
[1758781517271,51.4625005,4022.6,4022.5,0.002]
[1758781517441,53.5345005,4022.6,4022.5,0.002]
[1758781519052,53.5345005,4022.6,4022.1,0.02]
[1758781519053,2.48620158,4022.2,4022.1,0.02]
[1758781519251,9.87920158,4022.2,4022.1,0.02]
[1758781519451,10.55680158,4022.2,4022.1,0.02]
[1758781519651,10.94674688,4022.2,4022.1,0.02]
[1758781519879,48.43469303,4022.2,4022.1,0.02]
[1758781520442,2.48663434,4021.5,4021.4,1e-08]
[1758781520674,48.15958049,4021.5,4021.4,1e-08]
[1758781521275,48.38618049,4021.5,4021.4,1e-08]
[1758781521476,48.83718049,4021.5,4021.4,1e-08]
[1758781522354,50.90918049,4021.5,4021.4,1e-08]
[1758781523182,51.03381139,4021.5,4021.4,1e-08]
[1758781523582,44.56881139,4021.5,4021.4,1e-08]
[1758781523781,12.86826524,4021.5,4021.4,1e-08]
[1758781524981,13.25824055,4021.5,4021.4,1e-08]
[1758781525883,3.27881985,4021.2,4021.1,0.02]
[1758781526070,48.158766,4021.2,4021.1,0.02]
[1758781526271,48.836366,4021.2,4021.1,0.02]
[1758781530400,51.461366,4021.2,4021.1,0.02]
[1758781531071,40.48794615,4021.2,4021.1,0.02]
[1758781531408,0.1246309,4021.5,4021.1,3.0145399]
[1758781531607,4.391,4021.4,4021.2,0.5077]
[1758781531900,2.073,4021.8,4021.2,0.4521]
[1758781531901,7.391,4021.3,4021.2,0.4521]
[1758781532107,4.391,4021.3,4021.1,0.02]
[1758781532309,0.12312477,4021.5,4021.1,0.02]
[1758781532467,37.48794615,4021.2,4021.1,0.02]
[1758781532672,47.862766,4021.2,4021.1,0.02]
[1758781532887,48.089366,4021.2,4021.1,0.02]
[1758781533082,51.165366,4021.2,4021.1,0.02]
[1758781533288,51.165366,4021.2,4021.1,1e-08]
[1758781534090,5.90394354,4021.0,4020.9,1e-08]
[1758781534292,8.90419096,4020.6,4020.1,0.022]
[1758781534473,52.85513711,4020.6,4020.1,0.022]
[1758781534807,53.53273711,4020.6,4020.1,0.022]
[1758781535012,53.92286847,4020.6,4020.1,0.022]
[1758781535372,53.47186847,4020.6,4020.1,0.022]
[1758781535674,53.24526847,4020.6,4020.1,0.022]
[1758781535917,53.92286847,4020.6,4020.1,0.022]
[1758781536880,53.24526847,4020.6,4020.1,0.022]
[1758781537084,53.92286847,4020.6,4020.1,0.022]
[1758781540513,51.29786847,4020.6,4020.1,0.022]
[1758781542914,50.84686847,4020.6,4020.1,0.022]
[1758781545280,6.66932232,4020.6,4020.5,0.5082]
[1758781545584,12.74119096,4020.6,4020.5,0.002]
[1758781547838,13.42599096,4020.6,4020.5,0.002]
[1758781548184,12.74119096,4020.6,4020.5,0.002]
[1758781548385,13.13032082,4020.6,4020.5,0.002]
[1758781550005,13.36862082,4020.6,4020.5,0.002]
[1758781550187,13.81512082,4020.6,4020.5,0.002]
[1758781550384,16.44012082,4020.6,4020.5,0.002]
[1758781550716,6.27974784,4019.7,4019.6,0.002]
[1758781550920,52.85269399,4019.7,4019.6,0.002]
[1758781551226,12.73974784,4019.7,4019.6,0.5082]
[1758781551518,50.22769399,4019.7,4019.6,0.002]
[1758781551914,5.48774784,4019.7,4019.6,0.5082]
[1758781552230,9.87374784,4019.7,4019.6,0.5082]
[1758781552719,7.385,4019.7,4019.6,0.5082]
[1758781553342,9.87274784,4019.7,4019.6,0.5082]
[1758781553816,7.385,4019.7,4019.6,0.5082]
[1758781554017,9.87274784,4019.7,4019.6,0.5082]
[1758781554237,9.87274784,4019.7,4019.6,0.002]
[1758781554841,10.2628827,4019.7,4019.6,0.4526]
[1758781555139,10.2628827,4019.7,4019.6,0.5082]
[1758781555871,10.2628827,4019.7,4019.6,0.4526]
[1758781556427,5.8778827,4019.7,4019.6,0.5082]
[1758781556631,10.2618827,4019.7,4019.6,0.5082]
[1758781559559,5.8778827,4019.7,4019.6,0.5082]
[1758781560074,10.2608827,4019.7,4019.6,0.5082]
[1758781560672,10.2608827,4019.7,4019.6,0.4526]
[1758781560857,10.2608827,4019.7,4019.6,0.002]
[1758781561770,10.2608827,4019.7,4019.6,0.5024]
[1758781561771,5.8778827,4019.7,4019.6,0.5024]
[1758781562070,10.2598827,4019.7,4019.6,0.5024]
[1758781562297,0.39013486,4019.7,4019.6,2.99020973]
[1758781562499,4.382,4020.3,4019.7,2.48769288]
[1758781562699,4.382,4020.4,4019.8,0.5004]
[1758781562863,3.0,4020.3,4019.8,0.5004]
[1758781563063,3.0,4020.3,4019.8,0.4448]
[1758781563064,4.382,4020.2,4019.8,0.4448]
[1758781563391,4.381,4020.2,4019.9,0.5004]
[1758781563583,4.381,4020.2,4019.9,0.4448]
[1758781563782,4.381,4020.2,4020.0,0.0556]
[1758781564002,4.381,4020.2,4019.6,0.5024]
[1758781564185,0.4603,4020.8,4019.7,0.08047747]
[1758781564186,3.0,4020.8,4019.7,0.08047747]
[1758781564373,4.381,4020.7,4019.8,0.5004]
[1758781564578,5.48719772,4020.6,4019.9,2.54321039]
[1758781564777,3.0,4020.4,4020.0,0.4448]
[1758781564987,4.381,4020.3,4020.0,0.4448]
[1758781565177,4.381,4020.3,4019.9,2.54321039]
[1758781565178,4.381,4020.3,4020.1,0.5004]
[1758781565374,7.77106461,4020.3,4020.2,0.4448]
[1758781565680,0.39006461,4020.3,4020.2,3.28663947]
[1758781566575,4.38,4020.7,4020.6,2.48719096]
[1758781566777,4.38,4020.7,4020.6,2.98759096]
[1758781567295,4.38,4020.8,4020.6,2.98759096]
[1758781567461,0.39102758,4020.9,4020.7,2.98747208]
[1758781567659,0.39102758,4020.9,4020.8,0.5004]
[1758781567864,0.39102758,4020.9,4020.6,0.4448]
[1758781568099,0.39102758,4020.9,4019.7,2.48770479]
[1758781568100,2.48730194,4020.5,4019.7,2.48770479]
[1758781568278,4.379,4020.4,4019.6,0.002]
[1758781568473,4.379,4020.3,4019.7,0.5004]
[1758781568796,4.76906309,4020.3,4019.9,2.48758235]
[1758781568998,0.39006309,4020.3,4020.1,2.48744474]
[1758781569196,0.39006309,4020.3,4019.7,0.5004]
[1758781569495,0.39006309,4020.3,4019.8,0.02487685]
[1758781569719,0.39006309,4020.3,4019.6,0.002]
[1758781569720,40.87800924,4020.3,4019.6,0.002]
[1758781570019,2.48774784,4019.7,4019.6,0.002]
[1758781570182,9.86574784,4019.7,4019.6,0.002]
[1758781570386,10.56064784,4019.7,4019.6,0.002]
[1758781570820,11.35264784,4019.7,4019.6,0.002]
[1758781571796,13.97764784,4019.7,4019.6,0.002]
[1758781572626,51.46559399,4019.7,4019.6,0.002]
[1758781573599,51.85582275,4019.7,4019.6,0.002]
[1758781574686,51.85082275,4019.7,4019.6,0.002]
[1758781575119,5.90499542,4019.3,4019.1,1e-08]
[1758781575322,45.95107491,4019.7,4018.3,0.002]
[1758781575323,3.28011923,4019.1,4018.3,0.002]
[1758781575624,43.7684988,4018.4,4018.3,0.002]
[1758781575822,50.2194988,4018.4,4018.3,0.002]
[1758781576131,51.28829719,4018.4,4018.3,0.002]
[1758781576827,43.85807314,4018.4,4018.3,0.002]
[1758781577327,43.17957314,4018.4,4018.3,0.002]
[1758781577486,38.80257314,4018.4,4018.3,0.002]
[1758781577694,43.41497314,4018.4,4018.3,0.002]
[1758781578502,43.17957314,4018.4,4018.3,0.002]
[1758781580327,43.85807314,4018.4,4018.3,0.002]
[1758781580793,43.02467475,4018.4,4018.3,0.002]
[1758781580989,40.71427475,4018.4,4018.3,0.002]
[1758781581202,42.78827475,4018.4,4018.3,0.002]
[1758781581528,43.02367475,4018.4,4018.3,0.002]
[1758781582092,6.28055265,4018.4,4018.3,0.002]
[1758781582355,2.074,4018.8,4018.3,0.002]
[1758781582633,2.48855265,4018.4,4018.3,0.002]
[1758781582940,9.86455265,4018.4,4018.3,0.002]
[1758781583800,10.25481218,4018.4,4018.3,0.002]
[1758781584189,3.39025953,4018.4,4018.3,0.002]
[1758781584435,7.76625953,4018.4,4018.3,0.002]
[1758781584591,10.25481218,4018.4,4018.3,0.002]